Cogmind - Beta 11.1 *** ADVENTURER MODE // 2022.06.21 @ 04:20:06 Player: Olexender Result: Destroyed by G-34 Mercenary with Small Laser Performance ------------- Evolutions (0) 0 Regions Visited (1) 200 Robots Destroyed (11) 55 Value Destroyed (196) 196 Prototype IDs (3) 60 Alien Tech Used (0) 0 Bonus (0) 0 TOTAL SCORE: 511 Bonus ------- None Cogmind --------- Core Integrity 0/250 Matter 245/300 Energy 100/100 System Corruption 0% Temperature Cool (6) Movement Core (400) Ox7 Location -10/Materials Parts ------- > --- POWER (1) -------- (None) > --- PROPULSION (2) --- (None) > --- UTILITY (2) ------ Large Storage Unit Improved Terrain Scanner > --- WEAPON (2) ------- Mining Claw > --- INVENTORY (15) --- Aluminum Leg Compact Wheel High-capacity Battery (250) High-capacity Matter Pod (200) Sensor Array Seismic Detector Transport Network Coupler Peak State ------------ > --- POWER ------------ Ion Engine > --- PROPULSION ------- Compact Wheel Compact Wheel > --- UTILITY ---------- Small Storage Unit Improved Terrain Scanner > --- WEAPON ----------- Light Assault Rifle Light Assault Rifle > --- INVENTORY -------- Ion Engine Compact Wheel Mining Laser [Rating: 9] Favorites ----------- Power Ion Engine Engine Ion Engine Propulsion Compact Wheel Wheel Compact Wheel Utility Improved Terrain Scanner Device Improved Terrain Scanner Storage Large Storage Unit Weapon Light Assault Rifle Ballistic Gun Light Assault Rifle Special Weapon Welding Torch Slashing Weapon Mining Claw Build | -11 -10 ------- Run | Scr Mat Slots Evolved . | . . Power . | . . Propulsion . | . . Utility . | . . Weapon . | . . Parts Attached 13 | 8 5 Power 1 | 1 . Engine 1 | 1 . Core . | . . Reactor . | . . Propulsion 2 | 2 . Treads . | . . Leg . | . . Wheel 2 | 2 . Hover . | . . Flight . | . . Utility 5 | 3 2 Device 2 | 2 . Storage 3 | 1 2 Processor . | . . Hackware . | . . Protection . | . . Artifact . | . . Weapon 5 | 2 3 Energy Gun . | . . Energy Cannon . | . . Ballistic Gun 3 | 2 1 Ballistic Cannon . | . . Launcher . | . . Special Weapon 1 | . 1 Impact Weapon . | . . Slashing Weapon 1 | . 1 Piercing Weapon . | . . Special Melee Weapon . | . . Unidentified Prototypes . | . . Parts Lost 5 | . 5 Power 1 | . 1 Propulsion 2 | . 2 Utility . | . . Weapon 2 | . 2 Highest Loss Streak 4 | . 4 To Critical Strikes . | . . Average Slot Usage (%) 91 | . 91 Engine 13 | . 13 Wheel 25 | . 25 Device 25 | . 25 Storage 2 | . 2 Ballistic Gun 16 | . 16 Special Weapon 4 | . 4 Slashing Weapon 2 | . 2 Naked Turns . | . . Heaviest Build 30 | 13 30 Greatest Support 32 | 32 32 Greatest Overweight (x) 7 | . 7 Average Overweight (x) . | . . Largest Inventory Capacity 15 | 8 15 Average Capacity 6 | 6 6 Most Carried 8 | 5 8 Average Carried 4 | 2 4 Final Capacity 15 | 5 15 Final Carried 7 | 4 7 Class Distribution -------------------- 100% | Mutant Dominant Class ---------------- Mutant | -10/Materials Resources | -11 -10 ----------- Run | Scr Mat Matter Collected 579 | 298 281 Remotely . | . . Salvage Created 469 | 163 306 Parts 20 | 12 8 Haulers Intercepted 2 | . 2 Recyclers Shooed . | . . Parts Field Recycled . | . . Retrieved Matter . | . . Parts Self-Destructed . | . . Prevented . | . . Kills | -11 -10 ------- Run | Scr Mat Combat Hostiles Destroyed 4 | . 4 Melee 2 | . 2 Guns 1 | . 1 Cannons 1 | . 1 Classes Destroyed 5 | 2 3 Tunneler 3 | 3 . Hauler 2 | . 2 Recycler 1 | 1 . Watcher 1 | . 1 Grunt 4 | . 4 Best Kill Streak 2 | 2 2 Combat Bots Only 2 | . 2 Max Kills in Single Turn 1 | 1 1 Gunslinging . | . . Exploded . | . . Melee 1 | . 1 Uniques/NPCs Destroyed . | . . Combat | -11 -10 -------- Run | Scr Mat Damage Taken 617 | . 617 Core 254 | . 254 Absorbed by Shields . | . . Core Remaining (%) 100 | 100 . Volleys Fired 34 | 9 25 Largest 2 | 2 2 Hottest 40 | 40 40 Shots Fired 47 | 18 29 Gun 43 | 18 25 Cannon . | . . Launcher . | . . Special 4 | . 4 Kinetic 43 | 18 25 Thermal 4 | . 4 Explosive . | . . Electromagnetic . | . . Robot Hit Streak 9 | 7 9 Robot Miss Streak 2 | 1 2 Penetration Max . | . . Secondary Targets . | . . Shots Hit Robots 47 | 14 33 Core Hits 22 | 8 14 Critical Kills . | . . Critical Parts Destroyed . | . . Critical Strikes . | . . Melee Attacks 11 | . 11 Impact . | . . Slashing 11 | . 11 Piercing . | . . Sneak Attacks . | . . Combat Hostiles . | . . Follow-up Attacks . | . . Damage Inflicted 595 | 112 483 Guns 396 | 112 284 Cannons . | . . Explosions . | . . Melee 193 | . 193 Ramming . | . . Kinetic 396 | 112 284 Thermal 6 | . 6 Explosive . | . . Electromagnetic . | . . Impact . | . . Slashing 193 | . 193 Piercing . | . . Highest Corruption . | . . Average Corruption . | . . Corruption Purged . | . . Corruption Blocked . | . . Overload Shots . | . . Overflow Damage . | . . Projectiles . | . . Explosions . | . . Melee . | . . Knockbacks . | . . Impact . | . . Kinetic . | . . Secondary . | . . Self-Inflicted Damage . | . . Shots . | . . Rammed . | . . Targets Rammed . | . . Kicked . | . . Crushed . | . . Highest Temperature 20 | . 20 Average Temperature 6 | . 6 Received Heat Transfer 432 | . 432 Siege Activations . | . . Robots Corrupted . | . . Combat Hostiles . | . . Parts Fried . | . . Impact Corruptions . | . . Robots Melted . | . . Combat Hostiles . | . . Parts Melted . | . . Heat Transferred 75 | . 75 Parts Sabotaged . | . . Parts Stolen . | . . Parts Stripped . | . . Power Chain Reactions . | . . Missiles Intercepted . | . . Alert | -11 -10 ------- Run | Scr Mat Peak Influence 71 | 20 71 Initial 11 | . 11 Average 29 | 8 32 Maximum Alert Level . | . . Low Security (%) 100 | 100 100 Level 1 . | . . Level 2 . | . . Level 3 . | . . Level 4 . | . . Level 5 . | . . High Security . | . . Max Security . | . . Squads Dispatched 2 | . 2 Investigation 2 | . 2 Extermination . | . . Reinforcement . | . . Assault . | . . Garrison . | . . Intercept . | . . Searches Triggered . | . . Construction Impeded . | . . Haulers Reinforced . | . . Active Scanning Responses . | . . Cargo Convoy Interrupts . | . . Stealth | -11 -10 --------- Run | Scr Mat Distress Signals 1 | . 1 Communications Jammed . | . . Distress Signals . | . . Times Spotted 9 | . 9 Peak Tracking Total 3 | . 3 Tactical Retreats 1 | . 1 Traps | -11 -10 ------- Run | Scr Mat Traps Triggered 3 | . 3 Indirectly . | . . Trap Hack Attempts . | . . Triggered . | . . Disarmed . | . . Reprogrammed . | . . Reused . | . . Traps Extracted . | . . Installed . | . . Triggered . | . . Machines | -11 -10 ---------- Run | Scr Mat Machines Disabled . | . . Max in Single Turn . | . . Machines Sabotaged . | . . Garrisons Compromised . | . . Overloaded Fab Kills . | . . Hacking | -11 -10 --------- Run | Scr Mat Machines Accessed 7 | . 7 Terminals 6 | . 6 Fabricators . | . . Repair Stations . | . . Recycling Units 1 | . 1 Scanalyzers . | . . Garrison Access . | . . Total Hacks 22 | . 22 Successful 15 | . 15 Failed 7 | . 7 Catastrophic 1 | . 1 Database Lockouts . | . . Manual . | . . Terminals 21 | . 21 Fabricators . | . . Repair Stations . | . . Recycling Units 1 | . 1 Scanalyzers . | . . Garrison Access . | . . Terminal Hacks 14 | . 14 Record 7 | . 7 Prototype ID Bank 2 | . 2 Branch Access Points 1 | . 1 Emergency Access Points 1 | . 1 Unreport Threat 1 | . 1 Zone Layout 2 | . 2 Fabricator Hacks . | . . Repair Station Hacks . | . . Recycling Unit Hacks 1 | . 1 Report Inventory 1 | . 1 Scanalyzer . | . . Garrison Access Hacks . | . . Unauthorized Hacks . | . . Terminals . | . . Fabricators . | . . Repair Stations . | . . Recycling Units . | . . Scanalyzers . | . . Garrison Access . | . . Data Cores Recovered . | . . Used . | . . Hacking Detections 4 | . 4 Full Trace Events . | . . Feedback Events . | . . Feedback Blocked . | . . Robot Schematics Acquired . | . . Robots Built . | . . Authchips . | . . Time . | . . Total Robot Build Rating . | . . Part Schematics Acquired . | . . Parts Built . | . . Authchips . | . . Time . | . . Total Part Build Rating . | . . Parts Repaired . | . . Time . | . . Parts Recycled . | . . Recycled Matter . | . . Retrieved Matter . | . . Retrieved Components . | . . Parts Scanalyzed . | . . Part Schematics Acquired . | . . Parts Damaged . | . . Bothacking | -11 -10 ------------ Run | Scr Mat Used RIF Installer . | . . Robots Hacked . | . . Non-combat . | . . Combat . | . . Robot Hacks Applied . | . . Relay Couplers Released . | . . Fabnet Peak Effective % . | . . Robots Rewired . | . . Allies Hacked . | . . Hacks Repelled . | . . Allies | -11 -10 -------- Run | Scr Mat Total Allies . | . . Largest Group . | . . Highest-Rated Group . | . . Highest-Rated Ally . | . . Total Orders . | . . Ally Attacks . | . . Total Damage . | . . Kills . | . . Allies Corrupted . | . . Allies Melted . | . . Intel | -11 -10 ------- Run | Scr Mat Robot Analysis Total . | . . Derelict Logs Recovered . | . . Drone Launches . | . . Drone Recoveries . | . . Exploration | -11 -10 ------------- Run | Scr Mat Turns Passed 635 | 88 547 Spaces Moved 460 | 51 409 Core 15 | 11 4 Treads . | . . Legs . | . . Wheels 445 | 40 405 Hover . | . . Flight . | . . Fastest Speed 50 | 50 100 Average Speed 101 | 89 102 Slowest Speed 400 | 100 400 Overloaded Moves . | . . Propulsion Burnouts . | . . Robots Hopped . | . . Cave-ins Triggered . | . . Exploration Rate (%) 35 | 3 67 Regions Visited 1 Branch Regions . Pre-discovered Areas . | . . Known Exits Taken . | . . Unknown Exits Taken 1 | 1 . Scrap Searched . | . . Spaces Dug . | . . Terrain Destroyed . | . . Melee . | . . Projectile . | . . AOE . | . . Terrain Rammed . | . . Walls Destroyed . | . . Machines Disabled . | . . Actions | -11 -10 --------- Run | Scr Mat Total 566 | 78 488 Wait 19 | . 19 Move 459 | 50 409 Hop . | . . Pick Up 22 | 11 11 Fast Attach . | . . Attach 8 | 7 1 Detach . | . . Swap 5 | 1 4 Drop 8 | . 8 Fire 34 | 9 25 Melee 11 | . 11 Ram . | . . Kick . | . . Crush . | . . Escape Stasis . | . . Rewire . | . . Trap . | . . Miscellaneous . | . . Route ------- -11/Scrapyard -10/Materials (discovered 4 exits: [*Mat x2] / *Min x2) History --------- Turn | Location | Event 9 | -11/Scrapyard | Discovered new exit (range 16) 89 | -11/Scrapyard | Entered Materials 213 | -10/Materials | Discovered new exit (range 9) 301 | -10/Materials | Build established: Mutant 424 | -10/Materials | Discovered new exit (range 8) 553 | -10/Materials | Identified exit to Mines 566 | -10/Materials | Discovered new exit (range 6) 609 | -10/Materials | Core integrity fell below 50% 623 | -10/Materials | Core integrity fell below 20% 635 | -10/Materials | Lost 4 parts (1p2n1w) 636 | -10/Materials | Destroyed by G-34 Mercenary with Small Laser Last Messages --------------- Map updated. >>Query(Scanalyzer) Comprehensive suite of scanning and analysis tools for diagnosing prototype malfunctions, examining the properties of self-developed [Derelict] components, and reverse engineering technology recovered from the surface battle site. Capable of producing schematics for components scanned, though multiple scans may be required and the deconstruction process may render the component itself useless. Advanced scanalyzers are equipped with a wider array of devices for more quickly and safely analyzing esoteric technologies. 00566_ EXIT=FOUND 00571_ Triggered Alarm Trap. 00571_ An alarm sounds. 00571_ ALERT: Alarm triggered, dispatching investigation squad. 00592_ Com. Wheel destroyed. 00594_ G-34 Mercenary Aluminum Leg ripped off. 00599_ Com. Wheel destroyed. 00602_ Ion Engine destroyed. 00604_ Assault Rifle destroyed. 00607_ U-05 Engineer lays Concrete. 00608_ G-34 Mercenary destroyed. 00610_ U-05 Engineer lays Concrete. 00632_ G-34 Mercenary destroyed. Map ----- +----------------------------------------------------+ | | | | | | | | | | | | | | | | | | | | | | | | | | | | | | | | | | | | | | | ????????????????????????????#????????????????????? | | ?????????????????????????????????????????????????? | | ??????????????????????????#??????????????#???????? | | ????????????????????#????????????????????????????? | | ??????????????????????????????????#??????????????# | | ????????????????????????#####????????????#?????#?? | | ??????????????????#?????#@% #?????????#??#???????? | | ??????????????????#??#??# < # ??????? ??????????## | | ??????????????#?????????# #??????????????????##" | | ????????????????????????#! ###+####??????????##"! | | ?????????????"?? ?"?????#% #??? ??????#"" | | ??????????"????? ????####r +??????????# | | ?????????????????????+ g #??????????# | | ???????>????????? ???#####/#########?"???"????# | | ??????????????????????# #??????????????# | | ?????????????????????## """ #??#????#??????## | | ???????????? ? ??????## """ #?#??#??????#???## | | ?????# ?????###+###??# """ ##?????#????#????# | | ?????# ##### #??# #?#??????????????# | | ?????+ #### """ #????#???????????# | | ?????# T + """ ########??#?????## | | ?????# #### """ ## ##########/ | | ???????+###+## #??# ## | | ?????????????## ############### | | ???????? ?????# !!##?????#???# | | ?????????????## !#?????????# #######/## | | ??????????????# !#??######### ### ### | | ??????????????# !#?## # #?# #?? | | ???? ?????????# !#??# ! + #?# #?# | | ??+########+### !!##??# # #?# #?# | | ? ####???######### #?# """ #?? | +----------------------------------------------------+ Best States ------------- Heat Dissipation 25 Energy Generation 10 Energy Capacity 250 Matter Stores 300 Matter Capacity 300 Sight Range 16 Terrain Scan Range 16 Terrain Scan Density 10 Resistance: KI 20 Resistance: TH 20 Resistance: EX 20 Resistance: EM 20 Resistance: I 20 Resistance: S 20 Resistance: P 20 Evasion (%) 50 Offensive Hacking 10 Item Schematics ----------------- None Robot Schematics ------------------ None Fabricated ------------ Nothing Alien Tech Used ----------------- None Achievements -------------- None Challenges ------------ None Game ------ Seed ForceSwarmCarapace Manual? 0 Play Time 00:12:33 Cumulative 52.3 hours Start 2022.06.21 @ 03:52:43 End 2022.06.21 @ 04:20:06 Sessions 1 Manual Loads 0 Difficulty Adventurer Special Mode None Game No. 54 Rogue 0 Adventurer 54 Explorer 0 Win Type - Total 0 Types 0/0/0/0/0/0/0/0/0 Lore% 34 Gallery% 45 Achievement% 30 Wizard Run 0 Options --------- ASCII 0 Keyboard 0 Movement Mouse Keybinds 0 Fullscreen 1 Font 24/Smallcaps Map View 113x50 Tactical HUD 1 Map Filters NONE Filters NONE Steam 1 RUN: 1201e7d8-92f0-4703-9241-a510ef0605b7